bitfinex-derivatives/quotes_SOLF0:USTF0_20250509
["timestamp","ask_amount","ask_price","bid_price","bid_amount"]
[1746760588867,885.85796,163.35,163.21,12.1896]
[1746760589278,1.10422331,163.34,163.21,12.1896]
[1746760589570,1.10422331,163.34,163.19,40.72]
[1746760589571,11.84468041,163.33,163.19,40.72]
[1746760589761,11.84468041,163.33,163.13,40.36]
[1746760589762,1.10422331,163.32,163.13,5.8872]
[1746760589968,438.01796,163.31,163.14,40.88]
[1746760590168,9.73508041,163.29,163.13,5.8872]
[1746760590567,9.73508041,163.29,163.15,6.1301]
[1746760590771,1.10462688,163.28,163.15,6.1301]
[1746760590976,9.73508041,163.29,163.15,6.1301]
[1746760591178,1.10465044,163.28,163.15,6.1301]
[1746760591473,6.1279,163.22,163.16,6.1297]
[1746760591672,46.5079,163.22,163.16,6.1297]
[1746760592875,40.38,163.22,163.17,6.1294]
[1746760593474,40.38,163.22,163.14,9.73508041]
[1746760594067,40.38,163.22,163.19,6.1284]
[1746760594476,40.38,163.22,163.17,6.1293]
[1746760594675,40.38,163.22,163.13,5.8872]
[1746760595176,40.38,163.22,163.19,6.1286]
[1746760596080,40.38,163.22,163.2,6.1283]
[1746760596382,40.38,163.22,163.13,5.8872]
[1746760597079,40.38,163.26,163.16,9.73508041]
[1746760597383,40.38,163.26,163.13,67.8872]
[1746760597570,6.1265,163.25,163.13,67.8872]
[1746760598076,40.38,163.26,163.21,6.1277]
[1746760598475,40.38,163.26,163.17,40.7]
[1746760598680,6.1275,163.23,163.18,6.1288]
[1746760598878,40.38,163.26,163.17,40.7]
[1746760599281,40.38,163.26,163.17,50.43508041]
[1746760599781,40.38,163.26,163.22,6.1274]
[1746760599982,40.38,163.26,163.17,50.43508041]
[1746760600274,46.5063,163.26,163.21,6.1279]
[1746760600578,40.38,163.26,163.17,50.43508041]
[1746760600882,6.1265,163.25,163.2,6.128]
[1746760601282,40.38,163.26,163.17,40.7]
[1746760601471,40.38,163.26,163.18,6.1289]
[1746760601674,40.38,163.26,163.17,40.7]
[1746760602180,6.1275,163.23,163.18,6.129]
[1746760602582,40.38,163.26,163.18,6.129]
[1746760602879,40.38,163.26,163.17,40.7]
[1746760603678,40.38,163.26,163.13,46.9272]
[1746760604281,40.38,163.26,163.16,6.1298]
[1746760604582,40.38,163.26,163.13,5.8872]
[1746760604773,0.1464,163.25,163.13,5.8872]
[1746760604975,6.1282,163.21,163.15,6.1301]
[1746760605986,6.1284,163.2,163.15,6.1301]
[1746760606284,41.34,163.24,163.15,6.1301]
[1746760606472,6.1286,163.2,163.15,6.1301]
[1746760607087,6.1292,163.18,163.08,579.19508041]
[1746760607381,40.38,163.21,163.08,40.38]
[1746760607682,6.1295,163.17,163.08,40.38]
[1746760608082,41.3,163.19,163.08,40.38]
[1746760608281,6.1295,163.17,163.08,40.38]
[1746760609477,47.4287,163.19,163.08,40.38]
[1746760609683,40.38,163.21,163.1,9.73508041]
[1746760610384,6.1286,163.2,163.15,6.1302]
[1746760610580,6.1286,163.2,163.1,9.73508041]
[1746760611586,6.1286,163.2,163.15,6.1299]
[1746760611981,46.508,163.21,163.12,41.02]
[1746760612182,46.508,163.21,163.16,6.1295]
[1746760612490,6.1284,163.2,163.16,6.1295]
[1746760612682,40.38,163.21,163.15,6.1301]
[1746760612884,40.38,163.21,163.13,6.0877]
[1746760613181,40.38,163.21,163.11,6.1316]
[1746760613683,6.1301,163.16,163.12,6.1313]
[1746760613887,40.38,163.21,163.1,40.78]
[1746760614481,6.1296,163.17,163.11,6.1316]
[1746760615191,6.1299,163.16,163.1,40.78]
[1746760615883,6.1302,163.15,163.1,6.132]
[1746760616088,40.38,163.21,163.09,40.72]
[1746760616287,1.9163,163.2,163.09,40.72]
[1746760617389,1.9163,163.2,163.08,6.1325]
[1746760617691,6.1309,163.14,163.08,6.1325]
[1746760618688,1.9163,163.2,163.09,6.1324]
[1746760618884,1.9163,163.2,163.07,87.0402]
[1746760619789,40.38,163.21,163.07,87.0402]
[1746760619995,6.1294,163.18,163.07,87.0402]
[1746760620193,40.38,163.21,163.14,6.1305]
[1746760620390,6.129,163.19,163.14,6.1305]
[1746760620589,6.129,163.19,163.12,40.38]
[1746760620892,6.1286,163.2,163.12,40.38]
[1746760621088,40.38,163.21,163.12,40.38]
[1746760621393,40.38,163.21,163.13,6.1309]
[1746760621591,40.38,163.21,163.12,40.38]
[1746760621983,40.38,163.21,163.08,40.3]
[1746760622793,6.1304,163.15,163.1,6.132]
[1746760623494,6.1304,163.15,163.08,40.3]
[1746760623495,40.18,163.19,163.07,46.4202]
[1746760623693,40.18,163.19,163.07,6.0202]
[1746760623890,1.9629,163.18,163.07,6.0202]
[1746760624496,1.9629,163.18,163.05,6.1338]
[1746760625098,1.9629,163.18,163.06,6.1334]
[1746760625294,6.1318,163.11,163.06,6.1334]
[1746760625491,6.1318,163.11,163.03,80.82]
[1746760625693,6.1318,163.11,163.05,6.1337]
[1746760626997,40.72,163.13,163.05,6.1337]
[1746760627395,40.72,163.13,163.04,6.1343]
[1746760627596,6.1321,163.11,163.03,40.72]
[1746760627797,40.72,163.13,163.03,40.72]
[1746760628598,6.1324,163.1,163.05,6.1338]
[1746760630901,6.1326,163.09,163.05,6.1338]
[1746760631502,40.72,163.13,163.0,15.63598041]
[1746760631700,40.72,163.13,163.0,45.5609]
[1746760632104,40.72,163.13,163.0,5.9009]
[1746760632299,2.0139,163.12,163.0,5.9009]
[1746760632703,11.74898041,163.12,163.0,5.9009]
[1746760633204,11.74898041,163.12,163.0,1.9476]
[1746760633398,356.77796,163.11,162.96,4.0229]
[1746760633604,357.88379809,163.11,162.96,4.0229]
[1746760633807,6.1356,163.01,162.96,10.1602]
[1746760634306,6.1359,163.0,162.96,4.0229]
[1746760635013,6.1356,163.01,162.96,10.1602]
[1746760635810,6.1359,163.0,162.96,4.0229]
[1746760636006,40.72,163.03,162.96,4.0229]
[1746760636508,40.72,163.03,162.96,10.1601]
[1746760637005,6.1357,163.01,162.96,10.1601]
[1746760637202,40.72,163.03,162.96,10.1601]
[1746760638111,6.1355,163.01,162.96,10.1601]
[1746760638408,6.1355,163.01,162.97,6.1369]
[1746760638809,6.1355,163.01,162.96,10.1599]
[1746760639005,6.1352,163.02,162.96,4.0229]
[1746760639407,6.1352,163.02,162.97,6.1367]
[1746760640111,6.1355,163.01,162.97,6.1367]
[1746760640409,40.72,163.03,162.98,6.1366]
[1746760640608,6.1354,163.02,162.98,6.1366]
[1746760641211,46.8548,163.03,162.99,6.136]
[1746760641507,40.72,163.03,162.94,4.0232]
[1746760641707,6.1354,163.02,162.94,4.0232]
[1746760642012,6.1354,163.02,162.98,6.1365]
[1746760642812,6.1354,163.02,162.97,6.1369]
[1746760643011,6.1356,163.01,162.97,6.1369]
[1746760643509,40.72,163.03,162.92,1.9376]
[1746760644012,40.72,163.03,162.94,6.138]
[1746760644612,6.1366,162.98,162.94,6.138]
[1746760645313,6.137,162.97,162.93,6.1384]
[1746760646113,39.4,162.98,162.89,4.0328]
[1746760646315,39.4,162.97,162.89,4.0328]
[1746760646614,6.1381,162.95,162.9,6.1393]
[1746760647014,6.1381,162.95,162.89,4.0328]
[1746760647616,39.4,162.97,162.89,4.0328]
[1746760648118,45.5373,162.97,162.92,6.1388]
[1746760648416,45.5373,162.97,162.89,4.0328]
[1746760649116,39.4,162.97,162.89,4.0328]
[1746760649816,45.537,162.97,162.89,4.0328]
[1746760650117,39.4,162.97,162.89,4.0328]
[1746760651312,39.26,162.96,162.88,1.8964]
[1746760651712,39.26,162.96,162.87,1.0]
[1746760651914,6.1398,162.9,162.87,1.0]
[1746760652113,39.4,162.92,162.87,1.0]
[1746760652912,6.1403,162.89,162.87,1.0]
[1746760653417,6.1404,162.88,162.87,1.0]
[1746760654715,39.16,162.91,162.87,1.0]
[1746760655418,6.1404,162.89,162.87,1.0]
[1746760655712,39.16,162.91,162.87,1.0]
[1746760656115,6.1404,162.88,162.87,1.0]
[1746760657911,39.16,162.91,162.81,1.9076]
[1746760658116,41.3842,162.9,162.81,1.9076]
[1746760658315,41.3842,162.9,162.8,3.8155]
[1746760658516,6.1419,162.84,162.8,3.8155]
[1746760658720,41.3842,162.9,162.8,9.9586]
[1746760658922,41.3842,162.9,162.8,3.8155]
[1746760659217,6.1422,162.84,162.8,3.8155]
[1746760659816,6.1422,162.84,162.8,9.9588]
[1746760660016,6.1422,162.84,162.8,3.8155]
[1746760660211,6.1426,162.83,162.77,1.938]
[1746760660612,39.42,162.85,162.77,1.938]
[1746760660818,6.1423,162.83,162.77,1.938]
[1746760661321,39.42,162.85,162.77,1.938]
[1746760661623,6.1429,162.82,162.78,6.1438]
[1746760662313,39.42,162.85,162.75,1.0]
[1746760662717,6.1436,162.8,162.76,6.1446]
[1746760663918,6.1431,162.81,162.76,6.1446]
[1746760664327,39.42,162.85,162.75,1.0]
[1746760664625,6.1421,162.84,162.75,1.0]
[1746760664822,6.1421,162.84,162.76,39.06]
[1746760665828,45.5816,162.85,162.76,39.06]
[1746760666028,39.44,162.85,162.76,39.06]
[1746760666431,39.44,162.85,162.8,6.1431]
[1746760666619,6.1422,162.84,162.8,6.1431]
[1746760667123,6.1423,162.83,162.79,6.1437]
[1746760668327,6.1423,162.83,162.8,6.1434]
[1746760668531,6.142,162.84,162.8,6.1434]
[1746760670130,45.5816,162.85,162.81,6.1427]
[1746760670434,6.1416,162.85,162.81,6.1427]
[1746760670630,39.44,162.86,162.82,6.1424]
[1746760670828,39.44,162.86,162.76,39.06]
[1746760672834,39.44,162.86,162.83,6.1422]
[1746760673435,39.44,162.86,162.84,6.1418]
[1746760673835,39.44,162.86,162.8,5.9692]
[1746760674132,39.44,162.86,162.83,6.1422]
[1746760677335,39.44,162.86,162.82,6.1425]
[1746760677336,45.5812,162.86,162.82,6.1425]
[1746760677528,45.5812,162.86,162.8,5.9692]
[1746760677728,45.5812,162.86,162.8,12.07987021]
[1746760678435,6.1416,162.85,162.81,6.1429]
[1746760678839,6.1416,162.85,162.82,6.1426]
[1746760679139,45.5811,162.86,162.8,12.07987021]
[1746760679339,45.5811,162.86,162.82,6.1424]
[1746760680341,45.5811,162.86,162.83,6.1422]
[1746760681441,45.5811,162.86,162.82,6.1425]
[1746760681645,6.1415,162.85,162.82,6.1425]
[1746760681940,6.1415,162.85,162.8,5.9692]
[1746760682336,39.44,162.86,162.8,5.9692]
[1746760683041,6.1416,162.85,162.81,6.1427]
[1746760684343,39.44,162.86,162.8,1.9898]
[1746760684542,39.44,162.86,162.76,46.24447021]
[1746760684942,6.1419,162.84,162.79,6.1437]
[1746760685142,39.44,162.86,162.76,46.24447021]
[1746760685643,6.1425,162.83,162.79,6.1437]
[1746760687940,39.44,162.86,162.76,40.1338]
[1746760688138,39.44,162.86,162.79,6.11067021]
[1746760688538,45.5812,162.86,162.79,6.11067021]
[1746760688945,39.44,162.86,162.79,6.11067021]
[1746760689244,38.66,162.9,162.85,6.11067021]
[1746760690747,38.66,162.9,162.87,6.1404]
[1746760691046,38.66,162.9,162.85,6.11067021]
[1746760691544,568.86,162.95,162.88,6.11067021]
[1746760691743,568.86,162.95,162.85,9.76837041]
[1746760692342,574.9978,162.95,162.9,6.1395]
[1746760692748,38.64,162.95,162.88,38.0]
[1746760693049,38.64,162.95,162.89,3.9445]
[1746760693350,38.64,162.95,162.89,13.71287041]
[1746760693553,38.64,163.0,162.89,13.71287041]
[1746760693846,38.64,163.0,162.9,38.64]
[1746760694447,6.1365,162.99,162.93,6.1384]
[1746760694643,38.64,163.0,162.93,6.1384]
[1746760695554,38.64,163.0,162.91,8.1687]
[1746760695845,38.64,163.0,162.91,2.0298]
[1746760696045,38.64,163.0,162.89,3.9445]
[1746760696551,6.1382,162.94,162.89,3.9445]
[1746760696948,37.84,162.98,162.89,3.9445]
[1746760697145,37.84,162.98,162.89,10.0844]
[1746760699550,6.1384,162.94,162.89,10.0844]
[1746760700344,6.1384,162.94,162.87,37.82]
[1746760700345,6.1389,162.92,162.87,6.1407]
[1746760701048,6.1393,162.91,162.87,6.1407]
[1746760701654,6.1398,162.9,162.86,6.141]
[1746760702054,6.1398,162.9,162.84,37.68]
[1746760702258,6.1393,162.91,162.84,37.68]
[1746760702748,6.1393,162.91,162.87,6.1406]
[1746760703962,6.1389,162.92,162.87,6.1406]
[1746760704259,37.7,162.95,162.88,6.1403]
[1746760704456,37.7,162.95,162.84,37.68]
[1746760704654,6.1385,162.93,162.84,37.68]
[1746760704957,6.1385,162.93,162.89,6.14]
[1746760706060,37.7,162.95,162.88,6.1404]
[1746760706557,37.7,162.95,162.89,6.1399]
[1746760706758,37.7,162.95,162.84,47.44837041]
[1746760707660,6.1378,162.95,162.84,47.44837041]
[1746760707850,37.7,162.96,162.84,47.44837041]
[1746760708251,37.7,162.96,162.91,6.1389]
[1746760708455,37.7,162.96,162.84,47.44837041]
[1746760708858,37.7,162.96,162.9,6.1395]
[1746760709664,6.1378,162.95,162.9,6.1395]
[1746760710161,6.1378,162.95,162.91,6.1392]
[1746760710356,43.8375,162.96,162.91,6.1392]
[1746760710762,37.7,162.96,162.91,6.1392]
[1746760710965,43.8374,162.96,162.91,6.1392]
[1746760711164,37.7,162.96,162.92,6.1387]
[1746760711366,37.7,162.96,162.89,37.68]
[1746760711562,37.7,162.96,162.9,2.0011]
[1746760711866,6.1367,162.98,162.91,6.10287504]
[1746760712065,6.1367,162.98,162.93,6.1384]
[1746760712265,6.1367,162.98,162.91,6.10287504]
[1746760712564,6.1363,162.99,162.94,6.1378]
[1746760712766,6.1363,162.99,162.91,6.10287504]
[1746760712959,6.1366,162.98,162.91,6.10287504]
[1746760713160,6.1366,162.98,162.93,6.1382]
[1746760713363,6.1366,162.98,162.91,6.10287504]
[1746760713765,6.1366,162.98,162.9,11.76484835]
[1746760714573,6.1366,162.98,162.94,6.138]
[1746760714970,6.1363,162.99,162.94,6.138]
[1746760715373,6.1363,162.99,162.95,6.1377]
[1746760715566,6.1363,162.99,162.9,11.76484835]
[1746760715765,37.7,163.0,162.9,11.76484835]
[1746760715970,37.7,163.0,162.94,6.1378]
[1746760716366,6.1365,162.99,162.94,6.1378]
[1746760716566,37.7,163.0,162.92,6.1385]
[1746760716865,37.7,163.0,162.9,11.76484835]
[1746760717170,37.7,163.0,162.95,6.1376]
[1746760718070,6.1363,162.99,162.95,6.1376]
[1746760718370,37.7,163.0,162.94,6.138]
[1746760718566,6.1368,162.98,162.94,6.138]
[1746760718765,37.7,163.0,162.9,11.76484835]
[1746760719471,6.1372,162.97,162.93,6.1384]
[1746760721973,6.1367,162.98,162.94,6.1381]
[1746760722870,6.1363,162.99,162.94,6.1381]
[1746760723072,37.7,163.0,162.94,6.1381]
[1746760723464,6.1363,162.99,162.94,6.1381]
[1746760724074,6.1367,162.98,162.94,6.1381]
[1746760724276,6.1367,162.98,162.93,6.1384]
[1746760724666,6.1371,162.97,162.93,6.1384]
[1746760724871,37.7,163.0,162.93,6.1384]
[1746760725076,6.1369,162.98,162.93,6.1384]
[1746760726077,6.1369,162.98,162.94,6.1381]
[1746760728076,6.1371,162.97,162.9,49.26484835]
[1746760728577,37.7,163.0,162.92,6.1388]
[1746760728769,37.7,163.0,162.9,2.0011]
[1746760729774,6.137,162.97,162.9,2.0011]
[1746760729978,37.7,163.0,162.9,2.0011]
[1746760730272,6.1374,162.96,162.92,6.1385]
[1746760730682,37.7,163.0,162.92,6.1385]
[1746760730976,37.7,163.0,162.91,6.1392]
[1746760731170,37.7,163.0,162.9,2.0011]
[1746760731575,6.1372,162.97,162.93,6.1382]
[1746760731776,6.1372,162.97,162.9,2.0011]
[1746760732879,6.1365,162.99,162.9,2.0011]
[1746760733082,37.48,163.01,162.9,11.76484835]
[1746760733575,6.1359,163.0,162.95,6.1374]
[1746760733775,37.48,163.01,162.93,6.10119509]
[1746760733976,43.6157,163.01,162.96,6.1372]
[1746760734182,37.48,163.01,162.96,6.10119509]
[1746760734482,37.48,163.05,162.96,6.10119509]
[1746760735384,37.48,163.05,162.95,3.9473]
[1746760735688,6.1354,163.02,162.97,6.137]
[1746760736284,6.1356,163.01,162.96,6.1372]
[1746760736679,37.48,163.05,162.95,3.9473]
[1746760736885,6.1354,163.02,162.97,6.1369]
[1746760737087,37.48,163.05,162.95,3.9473]
[1746760737284,37.48,163.05,162.94,37.48]
[1746760737684,37.48,163.05,162.96,6.1373]
[1746760737685,6.1357,163.01,162.96,6.1373]
[1746760738588,6.1359,163.0,162.95,6.1377]
[1746760739087,37.48,163.05,162.95,6.1377]
[1746760739788,6.1361,163.0,162.95,6.1377]
[1746760740486,6.1355,163.01,162.94,37.48]
[1746760740689,37.48,163.03,162.94,37.48]
[1746760740987,6.1361,163.0,162.96,6.1371]
[1746760741588,6.1355,163.01,162.97,6.137]
[1746760742089,6.1359,163.0,162.96,6.1372]
[1746760743985,37.48,163.03,162.9,8.10229509]
[1746760744179,39.5004,162.99,162.87,43.58119509]
[1746760744383,39.5004,162.99,162.87,6.10119509]
[1746760745189,6.1378,162.95,162.91,6.1389]
[1746760745591,39.5004,162.99,162.87,6.10119509]
[1746760746094,6.1374,162.96,162.87,6.10119509]
[1746760746591,39.5004,162.99,162.9,6.10119509]
[1746760746787,39.5004,162.99,162.91,37.46]
[1746760747387,37.48,162.99,162.93,6.10119509]
[1746760747891,37.48,162.99,162.92,4.0881]
[1746760748081,37.48,162.99,162.93,6.10119509]
[1746760748284,37.48,162.99,162.96,6.1371]
[1746760749197,37.48,162.99,162.95,6.1377]
[1746760749490,37.48,162.99,162.93,6.10119509]
[1746760749687,43.6165,162.99,162.94,6.1378]
[1746760749887,37.48,162.99,162.93,6.10119509]
[1746760751691,37.48,162.99,162.97,6.1367]
[1746760751893,6.1352,163.02,162.97,6.1367]
[1746760752788,37.48,163.03,162.93,6.10119509]
[1746760752990,37.48,163.03,162.96,6.10119509]
[1746760753390,37.48,163.03,162.99,6.136]
[1746760754789,43.6147,163.03,162.96,6.10119509]
[1746760754994,37.48,163.03,162.96,6.10119509]
[1746760755197,37.48,163.03,162.94,6.10119509]
[1746760755793,37.48,163.03,162.92,4.0881]
[1746760755999,37.44,163.02,162.91,6.10119509]
[1746760756198,37.44,163.02,162.89,39.5156]
[1746760756199,6.10119509,163.01,162.89,2.0356]
[1746760756392,6.10119509,163.01,162.88,6.10119509]
[1746760757290,6.10119509,163.01,162.91,6.1389]
[1746760757496,6.10119509,163.01,162.88,6.10119509]
[1746760757696,6.10119509,163.01,162.87,3.9936]
[1746760760001,39.5129,163.02,162.9,6.1393]
[1746760760188,6.10119509,162.99,162.9,6.1393]
[1746760760392,39.3847,162.98,162.87,3.9936]
[1746760760595,37.44,162.97,162.9,6.1396]
[1746760761300,6.138,162.95,162.9,6.1396]
[1746760761699,37.44,162.97,162.9,6.1396]
[1746760761899,6.1384,162.94,162.89,6.1399]
[1746760762102,37.44,162.97,162.89,6.1399]
[1746760762794,37.44,162.97,162.85,6.10119509]
[1746760763103,6.139,162.92,162.85,6.10119509]
[1746760763298,43.579,162.92,162.85,6.10119509]
[1746760763499,43.579,162.92,162.87,6.1404]
[1746760763700,43.579,162.92,162.85,6.10119509]
[1746760764101,43.579,162.92,162.87,6.1404]
[1746760764401,43.579,162.92,162.85,6.10119509]
[1746760764603,43.579,162.92,162.87,6.1404]
[1746760764801,6.1394,162.91,162.87,6.1404]
[1746760765001,37.44,162.92,162.87,6.1404]
[1746760765501,43.5791,162.92,162.87,6.1404]
[1746760765801,43.5791,162.92,162.88,6.1403]
[1746760766003,37.44,162.92,162.85,6.10119509]
[1746760769002,37.44,162.92,162.89,6.1399]
[1746760769503,37.44,162.92,162.9,6.1395]
[1746760769903,37.44,162.92,162.85,6.10119509]
[1746760771202,37.44,162.92,162.89,6.1397]
[1746760771703,37.44,162.92,162.85,6.10119509]
[1746760771905,37.44,162.92,162.9,6.1396]
[1746760775806,37.44,162.92,162.89,6.1399]
[1746760776507,37.44,162.92,162.9,6.1395]
[1746760779503,37.44,162.92,162.89,6.1399]
[1746760780802,37.44,162.92,162.9,6.1396]
[1746760781912,6.1378,162.95,162.91,6.1392]
[1746760782510,6.1378,162.95,162.9,6.1395]
[1746760782811,37.44,162.96,162.9,6.1395]
[1746760782812,6.1381,162.94,162.9,6.1395]
[1746760783012,6.1381,162.94,162.89,6.1399]
[1746760783206,37.44,162.96,162.89,6.1399]
[1746760783409,6.1393,162.91,162.84,1.9444]
[1746760783614,43.54119509,162.96,162.86,6.1408]
[1746760784415,6.1396,162.91,162.87,6.1407]
[1746760784607,43.5796,162.91,162.87,6.1407]
[1746760786313,6.1396,162.9,162.86,6.141]
[1746760788019,43.5793,162.91,162.87,6.1406]
[1746760788213,43.5793,162.91,162.84,1.9444]
[1746760788414,37.44,162.91,162.84,1.9444]
[1746760789119,6.1397,162.9,162.85,6.1414]
[1746760789318,37.44,162.91,162.85,6.1414]
[1746760790824,6.1405,162.88,162.84,6.1418]
[1746760791121,37.44,162.91,162.8,37.36]
[1746760791418,1.965,162.9,162.8,37.36]
[1746760791622,3.8578,162.9,162.79,45.42149509]
[1746760791812,6.1414,162.86,162.81,6.1427]
[1746760792018,37.36,162.86,162.79,1.9603]
[1746760792321,6.1419,162.84,162.79,8.1038]
[1746760792527,37.36,162.86,162.79,8.1038]
[1746760792925,6.1419,162.84,162.79,8.1038]
[1746760793127,6.1419,162.84,162.8,6.1433]
[1746760793825,37.36,162.86,162.79,1.9603]
[1746760794525,37.36,162.86,162.83,6.1421]
[1746760794925,6.1406,162.88,162.83,6.1421]
[1746760795127,43.5006,162.88,162.83,6.1421]
[1746760795525,37.36,162.88,162.84,6.1418]
[1746760797029,43.5007,162.88,162.84,6.1418]
[1746760797830,43.5007,162.88,162.83,6.1422]
[1746760798130,6.1408,162.87,162.83,6.1422]
[1746760798520,37.36,162.88,162.8,6.10119509]
[1746760798726,6.1415,162.86,162.8,6.10119509]
[1746760799030,6.1415,162.86,162.82,6.1423]
[1746760799529,6.1416,162.85,162.81,6.1429]
[1746760799831,37.36,162.88,162.8,6.10119509]
[1746760800335,6.1412,162.86,162.82,6.1424]
[1746760800731,37.36,162.88,162.8,6.10119509]
[1746760802330,37.36,162.88,162.79,1.9603]
[1746760802633,6.1424,162.83,162.79,8.104]
[1746760802830,37.36,162.88,162.79,1.9603]
[1746760803030,74.68,162.88,162.79,1.9603]
[1746760803233,6.1418,162.85,162.8,6.1431]
[1746760803426,74.68,162.88,162.8,6.1431]
[1746760803830,6.1419,162.85,162.8,6.1431]
[1746760804733,6.1419,162.84,162.8,6.1431]
[1746760805127,74.68,162.88,162.79,1.9603]
[1746760805831,6.1421,162.84,162.79,8.1038]
[1746760806334,6.1421,162.84,162.8,6.1433]
[1746760806729,6.1421,162.84,162.79,1.9603]
[1746760806730,74.68,162.88,162.79,1.9603]
[1746760807234,6.1414,162.86,162.81,6.1427]
[1746760807438,74.68,162.88,162.81,6.1427]
[1746760807626,74.68,162.88,162.79,1.9603]
[1746760807832,6.1414,162.86,162.82,6.1426]
[1746760808236,37.36,162.88,162.79,1.9603]
[1746760808535,6.1412,162.86,162.79,1.9603]
[1746760808837,37.36,162.88,162.81,6.143]
[1746760809032,37.36,162.88,162.79,1.9603]
[1746760809340,37.36,162.88,162.77,43.54119509]
[1746760810342,37.36,162.88,162.79,6.1435]
[1746760811143,6.1424,162.83,162.79,6.1435]
[1746760812344,6.142,162.84,162.8,6.1433]
[1746760812841,37.36,162.88,162.76,47.31589509]
[1746760813449,6.1425,162.83,162.76,10.03589509]
[1746760813948,6.1425,162.83,162.78,6.1441]
[1746760814448,6.1425,162.83,162.76,10.03589509]
[1746760814647,6.1419,162.84,162.79,6.1437]
[1746760815048,6.1423,162.83,162.78,6.1441]
[1746760815241,37.36,162.88,162.76,10.03589509]
[1746760815650,6.142,162.84,162.8,6.1434]
[1746760816252,6.1412,162.86,162.79,6.10119509]
[1746760816648,6.1408,162.87,162.83,6.1422]
[1746760817142,37.36,162.88,162.82,6.10119509]
[1746760817742,37.36,162.88,162.87,6.1407]
[1746760817948,530.54,162.9,162.87,6.1407]
[1746760818349,530.54,162.9,162.82,10.04219509]
[1746760819555,356.77796,162.91,162.82,10.04219509]
[1746760820654,37.38,162.92,162.82,10.04219509]
[1746760820955,43.5189,162.92,162.82,10.04219509]
[1746760821256,37.38,162.92,162.85,6.10119509]
[1746760821558,37.38,162.92,162.87,6.1407]
[1746760821757,37.38,162.92,162.85,6.10119509]
[1746760821951,37.38,162.92,162.85,43.32119509]
[1746760822152,37.38,162.92,162.88,6.10119509]
[1746760822655,37.38,162.92,162.9,6.1396]
[1746760822957,37.2,162.96,162.88,6.10119509]
[1746760824560,6.1378,162.95,162.88,6.10119509]
[1746760824749,37.2,162.96,162.85,37.22]
[1746760824954,37.2,162.96,162.88,6.10119509]
[1746760825660,43.3375,162.96,162.91,6.1389]
[1746760825860,37.2,162.96,162.88,6.10119509]
[1746760826863,43.3374,162.96,162.91,6.1389]
[1746760827063,43.3374,162.96,162.88,6.10119509]
[1746760827956,6.1377,162.95,162.88,6.10119509]
[1746760828156,6.1377,162.95,162.9,6.1393]
[1746760828352,43.3374,162.96,162.88,6.10119509]
[1746760829261,43.3374,162.96,162.91,6.139]
[1746760829971,43.3374,162.96,162.92,6.1388]
[1746760830161,37.2,162.96,162.92,6.1388]
[1746760831065,43.3374,162.96,162.92,6.1388]
[1746760831768,37.2,162.96,162.92,6.1388]
[1746760832568,37.2,162.96,162.91,6.10119509]